fUST/lending_fUST_20250206
["ID","MTS","AMOUNT","RATE_DAILY","PERIOD"]
[351866465,1738825838925,-500.0,0.00013698,2]
[351866467,1738825838935,-500.0,0.00013698,2]
[351866469,1738825838944,-1952.69,0.00013698,2]
[351866471,1738825838954,-500.0,0.00013698,2]
[351866473,1738825838963,-571.89787961,0.00013698,2]
[351866475,1738825838972,-500.0,0.00013698,2]
[351866477,1738825838981,-500.0,0.00013698,2]
[351866479,1738825838991,-500.0,0.00013698,2]
[351866481,1738825839000,-500.0,0.00013698,2]
[351866483,1738825839010,-500.0,0.00013698,2]
[351866485,1738825839019,-500.0,0.00013698,2]
[351866487,1738825839028,-500.0,0.00013698,2]
[351866489,1738825839038,-500.0,0.00013698,2]
[351866490,1738825839047,-776.18,0.00013698,2]
[351866492,1738825839056,-500.0,0.00013698,2]
[351866494,1738825839067,-500.0,0.00013698,2]
[351866496,1738825839077,-556.32,0.00013698,2]
[351866498,1738825839086,-500.0,0.00013698,2]
[351866500,1738825839096,-500.0,0.00013698,2]
[351866502,1738825839108,-500.0,0.00013698,2]
[351866504,1738825839117,-500.0,0.00013698,2]
[351866506,1738825839127,-1914.57,0.00013698,2]
[351866508,1738825839136,-804.02,0.00013698,2]
[351866510,1738825839147,-500.0,0.00013698,2]
[351866512,1738825839156,-500.0,0.00013698,2]
[351866514,1738825839166,-500.0,0.00013698,2]
[351866516,1738825839175,-764.63,0.00013698,2]
[351866518,1738825839185,-932.09,0.00013698,2]
[351866520,1738825839194,-500.0,0.00013698,2]
[351866522,1738825839205,-500.0,0.00013698,2]
[351866524,1738825839215,-500.0,0.00013698,2]
[351866526,1738825839224,-703.39,0.00013698,2]
[351866528,1738825839233,-506.27,0.00013698,2]
[351866530,1738825839243,-500.0,0.00013698,2]
[351866532,1738825839253,-1302.83,0.00013698,2]
[351866534,1738825839263,-679.45,0.00013698,2]
[351866536,1738825839273,-500.0,0.00013698,2]
[351866538,1738825839282,-500.0,0.00013698,2]
[351866540,1738825839292,-500.0,0.00013698,2]
[351866542,1738825839301,-500.0,0.00013698,2]
[351866544,1738825839310,-648.58,0.00013698,2]
[351866546,1738825839320,-500.0,0.00013698,2]
[351866548,1738825839329,-500.0,0.00013698,2]
[351866550,1738825839339,-500.0,0.00013698,2]
[351866552,1738825839348,-500.0,0.00013698,2]
[351866554,1738825839358,-500.0,0.00013698,2]
[351866556,1738825839368,-500.0,0.00013698,2]
[351866558,1738825839378,-976.08,0.00013698,2]
[351866560,1738825839388,-1584.55,0.00013698,2]
[351866562,1738825839397,-536.77,0.00013698,2]
[351866564,1738825839407,-500.0,0.00013698,2]
[351866566,1738825839417,-515.81,0.00013698,2]
[351866568,1738825839427,-500.0,0.00013698,2]
[351866570,1738825839436,-500.0,0.00013698,2]
[351866572,1738825839446,-500.0,0.00013698,2]
[351866575,1738825839456,-496.05357506,0.00013698,2]
[351866576,1738825839466,-500.0,0.00013698,2]
[351866579,1738825839476,-500.0,0.00013698,2]
[351866581,1738825839485,-500.0,0.00013698,2]
[351866582,1738825839495,-500.0,0.00013698,2]
[351866585,1738825839504,-859.86,0.00013698,2]
[351866587,1738825839514,-1650.47,0.00013698,2]
[351866589,1738825839523,-500.0,0.00013698,2]
[351866591,1738825839533,-500.0,0.00013698,2]
[351866592,1738825839542,-500.0,0.00013698,2]
[351866595,1738825839552,-1397.76,0.00013698,2]
[351866597,1738825839561,-500.0,0.00013698,2]
[351866598,1738825839571,-1515.33,0.00013698,2]
[351866600,1738825839580,-500.0,0.00013698,2]
[351866603,1738825839591,-500.0,0.00013698,2]
[351866605,1738825839600,-2148.33,0.00013698,2]
[351866608,1738825839610,-500.0,0.00013698,2]
[351866611,1738825839620,-500.0,0.00013698,2]
[351866614,1738825839631,-187.8267074,0.00013698,2]
[351866616,1738825839641,-500.0,0.00013698,2]
[351866618,1738825839651,-500.0,0.00013698,2]
[351866620,1738825839660,-500.0,0.00013698,2]
[351866622,1738825839670,-5965.69,0.00013698,2]
[351866624,1738825839679,-500.0,0.00013698,2]
[351866626,1738825839689,-521.34,0.00013698,2]
[351866628,1738825839698,-732.15,0.00013698,2]
[351866630,1738825839708,-860.72,0.00013698,2]
[351866632,1738825839717,-500.0,0.00013698,2]
[351866634,1738825839726,-500.0,0.00013698,2]
[351866636,1738825839735,-500.0,0.00013698,2]
[351866638,1738825839744,-500.0,0.00013698,2]
[351866640,1738825839754,-500.0,0.00013698,2]
[351866642,1738825839764,-1976.58,0.00013698,2]
[351866644,1738825839773,-500.0,0.00013698,2]
[351866646,1738825839783,-500.0,0.00013698,2]
[351866648,1738825839794,-500.0,0.00013698,2]
[351866650,1738825839804,-500.0,0.00013698,2]
[351866652,1738825839814,-2682.31,0.00013698,2]
[351866654,1738825839823,-500.0,0.00013698,2]
[351866656,1738825839833,-500.0,0.00013698,2]
[351866658,1738825839843,-596.18,0.00013698,2]
[351866679,1738825840040,-500.0,0.00013698,2]
[351866681,1738825840051,-500.0,0.00013698,2]
[351866683,1738825840061,-564.15175835,0.00013698,2]
[351866685,1738825840071,-500.0,0.00013698,2]
[351866687,1738825840080,-969.79,0.00013698,2]
[351866689,1738825840090,-739.06,0.00013698,2]
[351866691,1738825840101,-500.0,0.00013698,2]
[351866693,1738825840113,-606.33,0.00013698,2]
[351866695,1738825840123,-500.0,0.00013698,2]
[351866697,1738825840133,-500.0,0.00013698,2]
[351866699,1738825840143,-500.0,0.00013698,2]
[351866701,1738825840154,-11152.79,0.00013698,2]
[351866703,1738825840164,-500.0,0.00013698,2]
[351866705,1738825840175,-4920.29,0.00013698,2]
[351866707,1738825840185,-500.0,0.00013698,2]
[351866710,1738825840196,-500.0,0.00013698,2]
[351866712,1738825840206,-812.74,0.00013698,2]
[351866713,1738825840215,-500.0,0.00013698,2]
[351866716,1738825840225,-3422.15,0.00013698,2]
[351866717,1738825840234,-500.0,0.00013698,2]
[351866720,1738825840244,-500.0,0.00013698,2]
[351866721,1738825840254,-500.0,0.00013698,2]
[351866724,1738825840264,-1896.21,0.00013698,2]
[351866726,1738825840275,-500.0,0.00013698,2]
[351866728,1738825840284,-20580.38,0.00013698,2]
[351866730,1738825840294,-4042.47,0.00013698,2]
[351866732,1738825840303,-2055.52,0.00013698,2]
[351866734,1738825840312,-529.96,0.00013698,2]
[351866736,1738825840322,-500.0,0.00013698,2]
[351866738,1738825840331,-931.34,0.00013698,2]
[351866740,1738825840341,-690.97,0.00013698,2]
[351866742,1738825840350,-500.0,0.00013698,2]
[351866744,1738825840359,-530.33881304,0.00013698,2]
[351866746,1738825840369,-500.0,0.00013698,2]
[351866748,1738825840378,-1746.15203851,0.00013698,2]
[351866753,1738825840425,-118.17796149,0.00013698,2]
[351866755,1738825840435,-500.0,0.00013698,2]
[351866757,1738825840445,-2520.04,0.00013698,2]
[351866759,1738825840454,-1724.05,0.00013698,2]
[351866761,1738825840463,-500.0,0.00013698,2]
[351866763,1738825840472,-628.28103478,0.00013698,2]
[351866765,1738825840482,-500.0,0.00013698,2]
[351866767,1738825840491,-500.0,0.00013698,2]
[351866769,1738825840501,-500.0,0.00013698,2]
[351866771,1738825840511,-786.52,0.00013698,2]
[351866773,1738825840521,-500.0,0.00013698,2]
[351866775,1738825840530,-4900.42,0.00013698,2]
[351866777,1738825840540,-1274.05,0.00013698,2]
[351866779,1738825840550,-500.0,0.00013698,2]
[351866781,1738825840561,-547.89,0.00013698,2]
[351866783,1738825840570,-500.0,0.00013698,2]
[351866785,1738825840580,-500.0,0.00013698,2]
[351866787,1738825840590,-500.0,0.00013698,2]
[351866789,1738825840600,-500.0,0.00013698,2]
[351866791,1738825840610,-500.0,0.00013698,2]
[351866793,1738825840621,-1130.0,0.00013698,2]
[351866796,1738825840631,-3673.51,0.00013698,2]
[351866798,1738825840641,-1869.5,0.00013698,2]
[351866799,1738825840651,-500.0,0.00013698,2]
[351866801,1738825840660,-500.0,0.00013698,2]
[351866803,1738825840669,-1552.95087102,0.00013698,2]
[351866827,1738825840889,-235.75912898,0.00013698,2]
[351866829,1738825840900,-500.0,0.00013698,2]
[351866831,1738825840910,-500.0,0.00013698,2]
[351866833,1738825840920,-500.0,0.00013698,2]
[351866835,1738825840930,-895.25,0.00013698,2]
[351866837,1738825840940,-4444.61,0.00013698,2]
[351866839,1738825840951,-601.14,0.00013698,2]
[351866841,1738825840961,-500.0,0.00013698,2]
[351866843,1738825840971,-500.0,0.00013698,2]
[351866845,1738825840981,-819.49,0.00013698,2]
[351866847,1738825840991,-2035.28,0.00013698,2]
[351866849,1738825841001,-1557.87,0.00013698,2]
[351866851,1738825841010,-500.0,0.00013698,2]
[351866853,1738825841020,-500.0,0.00013698,2]
[351866855,1738825841030,-9265.9,0.00013698,2]
[351866856,1738825841039,-500.0,0.00013698,2]
[351866857,1738825841048,-500.0,0.00013698,2]
[351866858,1738825841058,-500.0,0.00013698,2]
[351866859,1738825841068,-500.0,0.00013698,2]
[351866860,1738825841077,-500.0,0.00013698,2]
[351866861,1738825841085,-500.0,0.00013698,2]
[351866862,1738825841095,-55137.81,0.00013698,2]
[351866863,1738825841108,-500.0,0.00013698,2]
[351866864,1738825841117,-500.0,0.00013698,2]
[351866865,1738825841126,-500.0,0.00013698,2]
[351866866,1738825841136,-925.06,0.00013698,2]
[351866867,1738825841145,-500.0,0.00013698,2]
[351866868,1738825841154,-500.0,0.00013698,2]
[351866869,1738825841163,-248.77942215,0.00013698,2]
[351866871,1738825841172,-500.0,0.00013698,2]
[351866873,1738825841181,-2866.45,0.00013698,2]
[351866875,1738825841191,-687.62,0.00013698,2]
[351866877,1738825841200,-500.0,0.00013698,2]
[351866879,1738825841210,-500.0,0.00013698,2]
[351866881,1738825841220,-2324.04,0.00013698,2]
[351866883,1738825841229,-548.52,0.00013698,2]
[351866885,1738825841239,-2155.77,0.00013698,2]
[351866887,1738825841248,-500.0,0.00013698,2]
[351866889,1738825841259,-1645.36,0.00013698,2]
[351866891,1738825841269,-500.0,0.00013698,2]
[351866893,1738825841279,-5389.6,0.00013698,2]
[351866895,1738825841289,-500.0,0.00013698,2]
[351866897,1738825841299,-500.0,0.00013698,2]
[351866899,1738825841308,-500.0,0.00013698,2]
[351866901,1738825841317,-500.0,0.00013698,2]
[351866903,1738825841326,-19603.76,0.00013698,2]
[351866905,1738825841335,-500.0,0.00013698,2]
[351866907,1738825841346,-2713.5,0.00013698,2]
[351866909,1738825841355,-512.22,0.00013698,2]
[351866911,1738825841364,-500.0,0.00013698,2]
[351866913,1738825841374,-1015.659175,0.00013699,2]
[351866915,1738825841385,-258.832448,0.00013699,2]
[351866917,1738825841395,-151.44052665,0.00013699,2]
[351866919,1738825841404,-666.09263918,0.00013699,2]
[351866921,1738825841413,-500.0,0.00013699,2]
[351866923,1738825841422,-666.09263918,0.00013699,2]
[351866925,1738825841433,-500.0,0.00013699,2]
[351866927,1738825841442,-666.09263918,0.00013699,2]
[351866929,1738825841451,-436.11573944,0.00013699,2]
[351866931,1738825841460,-666.09263918,0.00013699,2]
[351866933,1738825841470,-666.09263918,0.00013699,2]
[351866935,1738825841479,-666.09263918,0.00013699,2]
[351866937,1738825841489,-666.09263918,0.00013699,2]
[351866939,1738825841499,-666.09263918,0.00013699,2]
[351866941,1738825841508,-666.09263918,0.00013699,2]
[351866943,1738825841518,-666.09263918,0.00013699,2]
[351866945,1738825841527,-666.09263918,0.00013699,2]
[351866947,1738825841536,-666.09263918,0.00013699,2]
[351866949,1738825841546,-666.09263918,0.00013699,2]
[351866952,1738825841556,-666.09263918,0.00013699,2]
[351866954,1738825841566,-666.09263918,0.00013699,2]
[351866956,1738825841575,-666.09263918,0.00013699,2]
[351866958,1738825841585,-666.09263918,0.00013699,2]
[351866960,1738825841596,-666.09263918,0.00013699,2]
[351866962,1738825841607,-666.09263918,0.00013699,2]
[351866964,1738825841616,-666.09263918,0.00013699,2]
[351866966,1738825841626,-666.09263918,0.00013699,2]
[351866968,1738825841635,-666.09263918,0.00013699,2]
[351866970,1738825841644,-666.09263918,0.00013699,2]
[351866972,1738825841654,-666.09263918,0.00013699,2]
[351866974,1738825841663,-666.09263918,0.00013699,2]
[351866976,1738825841674,-666.09263918,0.00013699,2]
[351866978,1738825841683,-666.09263918,0.00013699,2]
[351866980,1738825841693,-666.09263918,0.00013699,2]
[351866981,1738825841702,-666.09263918,0.00013699,2]
[351866983,1738825841711,-666.09263918,0.00013699,2]
[351866985,1738825841720,-666.09263918,0.00013699,2]
[351866987,1738825841729,-666.09263918,0.00013699,2]
[351866989,1738825841739,-666.09263918,0.00013699,2]
[351866991,1738825841748,-666.09263918,0.00013699,2]
[351866993,1738825841757,-666.09263918,0.00013699,2]
[351866995,1738825841766,-666.09263918,0.00013699,2]
[351866997,1738825841776,-666.09263918,0.00013699,2]
[351866999,1738825841785,-666.09263918,0.00013699,2]
[351867001,1738825841794,-666.09263918,0.00013699,2]
[351867003,1738825841803,-666.09263918,0.00013699,2]
[351867005,1738825841812,-666.09263918,0.00013699,2]
[351867007,1738825841821,-666.09263918,0.00013699,2]
[351867009,1738825841831,-666.09263918,0.00013699,2]
[351867011,1738825841840,-666.09263918,0.00013699,2]
[351867013,1738825841850,-666.09263918,0.00013699,2]
[351867015,1738825841859,-666.09263918,0.00013699,2]
[351867017,1738825841869,-666.09263918,0.00013699,2]
[351867019,1738825841879,-666.09263918,0.00013699,2]
[351867021,1738825841888,-666.09263918,0.00013699,2]
[351867023,1738825841898,-666.09263918,0.00013699,2]
[351867025,1738825841907,-666.09263918,0.00013699,2]
[351867027,1738825841917,-666.09263918,0.00013699,2]
[351867029,1738825841926,-666.09263918,0.00013699,2]
[351867031,1738825841936,-666.09263918,0.00013699,2]
[351867033,1738825841946,-666.09263918,0.00013699,2]
[351867035,1738825841955,-666.09263918,0.00013699,2]
[351867038,1738825841965,-666.09263918,0.00013699,2]
[351867040,1738825841974,-666.09263918,0.00013699,2]
[351867042,1738825841984,-666.09263918,0.00013699,2]
[351867044,1738825841993,-666.09263918,0.00013699,2]
[351867046,1738825842003,-666.09263918,0.00013699,2]
[351867047,1738825842013,-666.09263918,0.00013699,2]
[351867049,1738825842022,-666.09263918,0.00013699,2]
[351867052,1738825842032,-666.09263918,0.00013699,2]
[351867054,1738825842041,-666.09263918,0.00013699,2]
[351867056,1738825842050,-666.09263918,0.00013699,2]
[351867058,1738825842061,-666.09263918,0.00013699,2]
[351867060,1738825842070,-666.09263918,0.00013699,2]
[351867062,1738825842079,-666.09263918,0.00013699,2]
[351867064,1738825842089,-666.09263918,0.00013699,2]
[351867065,1738825842098,-666.09263918,0.00013699,2]
[351867068,1738825842108,-1052.55241939,0.00013699,2]
[351867070,1738825842117,-1052.55241939,0.00013699,2]
[351867072,1738825842129,-1052.55241939,0.00013699,2]
[351867073,1738825842138,-1052.55241939,0.00013699,2]
[351867075,1738825842148,-1052.55241939,0.00013699,2]
[351867077,1738825842158,-1052.55241939,0.00013699,2]
[351867079,1738825842167,-1052.55241939,0.00013699,2]
[351867081,1738825842176,-1052.55241939,0.00013699,2]
[351867083,1738825842186,-1052.55241939,0.00013699,2]
[351867085,1738825842195,-1052.55241939,0.00013699,2]
[351867087,1738825842204,-1052.55241939,0.00013699,2]
[351867089,1738825842214,-1052.55241939,0.00013699,2]
[351867092,1738825842224,-1052.55241939,0.00013699,2]
[351867094,1738825842233,-1052.55241939,0.00013699,2]
[351867095,1738825842243,-1052.55241939,0.00013699,2]
[351867098,1738825842254,-1052.55241939,0.00013699,2]
[351867100,1738825842263,-1052.55241939,0.00013699,2]
[351867102,1738825842273,-1052.55241939,0.00013699,2]
[351867104,1738825842283,-1052.55241939,0.00013699,2]
[351867106,1738825842292,-392.83195904,0.00013701,2]
[351867108,1738825842301,-392.83195904,0.00013804,2]
[351867110,1738825842310,-500.0,0.00013834,2]
[351867112,1738825842319,-500.0,0.00013834,2]
[351867114,1738825842328,-199.21922272,0.00013834,2]
[351867116,1738825842337,-500.0,0.00013834,2]
[351867117,1738825842346,-554.95235063,0.00013834,2]
[351867119,1738825842356,-500.0,0.00013835,2]
[351867121,1738825842365,-500.0,0.00013835,2]
[351867123,1738825842374,-500.0,0.00013835,2]
[351867125,1738825842383,-500.0,0.00013835,2]
[351867127,1738825842393,-500.0,0.00013835,2]
[351867129,1738825842402,-796.27,0.00013835,2]
[351867131,1738825842412,-500.0,0.00013835,2]
[351867133,1738825842421,-500.0,0.00013835,2]
[351867135,1738825842430,-500.0,0.00013835,2]
[351867137,1738825842440,-500.0,0.00013835,2]
[351867139,1738825842449,-500.0,0.00013835,2]
[351867141,1738825842459,-500.0,0.00013835,2]
[351867143,1738825842468,-500.0,0.00013835,2]
[351867145,1738825842478,-500.0,0.00013835,2]
[351867147,1738825842488,-500.0,0.00013835,2]
[351867149,1738825842498,-500.0,0.00013835,2]
[351867152,1738825842508,-500.0,0.00013835,2]
[351867153,1738825842518,-511.46809914,0.00013835,2]
[351867156,1738825842528,-500.0,0.00013835,2]
[351867158,1738825842539,-500.0,0.00013835,2]
[351867160,1738825842548,-500.0,0.00013835,2]
[351867162,1738825842558,-500.0,0.00013835,2]
[351867164,1738825842567,-500.0,0.00013835,2]
[351867167,1738825842576,-500.0,0.00013835,2]
[351867169,1738825842585,-500.0,0.00013835,2]
[351867172,1738825842595,-500.0,0.00013835,2]
[351867175,1738825842607,-500.0,0.00013835,2]
[351867177,1738825842617,-500.0,0.00013835,2]
[351867179,1738825842626,-500.0,0.00013835,2]
[351867181,1738825842635,-500.0,0.00013835,2]
[351867183,1738825842644,-500.0,0.00013835,2]
[351867184,1738825842653,-500.0,0.00013835,2]
[351867187,1738825842662,-500.0,0.00013835,2]
[351867188,1738825842672,-500.0,0.00013835,2]
[351867190,1738825842684,-1663.81,0.00013835,2]
[351867192,1738825842693,-506.64,0.00013835,2]
[351867194,1738825842702,-500.0,0.00013835,2]
[351867196,1738825842711,-500.0,0.00013835,2]
[351867198,1738825842721,-1635.87,0.00013835,2]
[351867200,1738825842729,-892.58,0.00013835,2]
[351867202,1738825842738,-500.0,0.00013835,2]
[351867204,1738825842748,-500.0,0.00013835,2]
[351867206,1738825842757,-500.0,0.00013835,2]
[351867208,1738825842767,-500.0,0.00013835,2]
[351867210,1738825842775,-500.0,0.00013835,2]
[351867212,1738825842785,-500.0,0.00013835,2]
[351867214,1738825842794,-500.0,0.00013835,2]
[351867216,1738825842804,-647.02,0.00013835,2]
[351867218,1738825842813,-500.0,0.00013835,2]
[351867220,1738825842822,-500.0,0.00013835,2]
[351867222,1738825842831,-500.0,0.00013835,2]
[351867224,1738825842840,-515.26,0.00013835,2]
[351867226,1738825842853,-605.60997334,0.00013835,2]
[351867228,1738825842863,-500.0,0.00013835,2]
[351867230,1738825842872,-500.0,0.00013835,2]
[351867232,1738825842883,-500.0,0.00013835,2]
[351867234,1738825842892,-500.0,0.00013835,2]
[351867236,1738825842902,-500.0,0.00013835,2]
[351867238,1738825842913,-1205.63,0.00013835,2]
[351867240,1738825842923,-227.66882497,0.00013835,2]
[351867242,1738825842933,-500.0,0.00013835,2]
[351867244,1738825842943,-500.0,0.00013835,2]
[351867246,1738825842953,-500.0,0.00013835,2]
[351867248,1738825842962,-500.0,0.00013835,2]
[351867250,1738825842972,-1952.69,0.00013835,2]
[351867252,1738825842982,-500.0,0.00013835,2]
[351867254,1738825842991,-500.0,0.00013835,2]
[351867256,1738825843002,-500.0,0.00013835,2]
[351867258,1738825843012,-500.0,0.00013835,2]
[351867260,1738825843022,-382.7660543,0.00013835,2]
[351867262,1738825843032,-189.52594847,0.00013835,2]
[351867264,1738825843042,-500.0,0.00013835,2]
[351867267,1738825843055,-776.18,0.00013835,2]
[351867269,1738825843065,-440.97146995,0.00013835,2]
[351867271,1738825843075,-500.0,0.00013835,2]
[351867273,1738825843084,-556.32,0.00013835,2]
[351867275,1738825843094,-642.11100735,0.00013835,2]
[351867277,1738825843109,-500.0,0.00013835,2]
[351867279,1738825843119,-1914.57,0.00013835,2]
[351867281,1738825843130,-804.02,0.00013835,2]
[351867283,1738825843144,-500.0,0.00013835,2]
[351867285,1738825843155,-500.0,0.00013835,2]
[351867287,1738825843164,-764.63,0.00013835,2]
[351867289,1738825843174,-932.09,0.00013835,2]
[351867291,1738825843187,-500.0,0.00013835,2]
[351867293,1738825843197,-500.0,0.00013835,2]
[351867295,1738825843207,-510.32229887,0.00013835,2]
[351867297,1738825843217,-703.39,0.00013835,2]
[351867299,1738825843227,-506.27,0.00013835,2]
[351867301,1738825843236,-500.0,0.00013835,2]
[351867303,1738825843246,-1302.83,0.00013835,2]
[351867305,1738825843257,-679.45,0.00013835,2]
[351867307,1738825843268,-500.0,0.00013835,2]
[351867309,1738825843277,-500.0,0.00013835,2]
[351867312,1738825843287,-500.0,0.00013835,2]
[351867314,1738825843297,-648.58,0.00013835,2]
[351867316,1738825843306,-500.0,0.00013835,2]
[351867317,1738825843316,-500.0,0.00013835,2]
[351867320,1738825843326,-500.0,0.00013835,2]
[351867321,1738825843336,-976.08,0.00013835,2]
[351867324,1738825843346,-1584.55,0.00013835,2]
[351867327,1738825843363,-536.77,0.00013835,2]
[351867329,1738825843373,-500.0,0.00013835,2]
[351867331,1738825843386,-515.81,0.00013835,2]
[351867333,1738825843397,-500.0,0.00013835,2]
[351867335,1738825843408,-500.0,0.00013835,2]
[351867337,1738825843417,-500.0,0.00013835,2]
[351867338,1738825843427,-500.0,0.00013835,2]
[351867339,1738825843437,-859.86,0.00013835,2]
[351867340,1738825843447,-1650.47,0.00013835,2]
[351867341,1738825843457,-500.0,0.00013835,2]
[351867342,1738825843467,-500.0,0.00013835,2]
[351867343,1738825843476,-1397.76,0.00013835,2]
[351867344,1738825843486,-500.0,0.00013835,2]
[351867345,1738825843495,-1515.33,0.00013835,2]
[351867346,1738825843505,-500.0,0.00013835,2]
[351867348,1738825843514,-500.0,0.00013835,2]
[351867349,1738825843524,-2148.33,0.00013835,2]
[351867351,1738825843534,-500.0,0.00013835,2]
[351867354,1738825843544,-500.0,0.00013835,2]
[351867356,1738825843559,-500.0,0.00013835,2]
[351867357,1738825843569,-5965.69,0.00013835,2]
[351867360,1738825843579,-500.0,0.00013835,2]
[351867362,1738825843589,-521.34,0.00013835,2]
[351867364,1738825843603,-732.15,0.00013835,2]
[351867366,1738825843612,-860.72,0.00013835,2]
[351867368,1738825843622,-500.0,0.00013835,2]
[351867370,1738825843631,-500.0,0.00013835,2]
[351867371,1738825843640,-500.0,0.00013835,2]
[351867373,1738825843650,-500.0,0.00013835,2]
[351867376,1738825843660,-500.0,0.00013835,2]
[351867377,1738825843669,-1976.58,0.00013835,2]
[351867379,1738825843679,-315.70970659,0.00013835,2]
[351867382,1738825843691,-500.0,0.00013835,2]
[351867384,1738825843700,-500.0,0.00013835,2]
[351867386,1738825843710,-500.0,0.00013835,2]
[351867388,1738825843719,-2682.31,0.00013835,2]
[351867389,1738825843729,-500.0,0.00013835,2]
[351867391,1738825843738,-500.0,0.00013835,2]
[351867393,1738825843748,-596.18,0.00013835,2]
[351867396,1738825843757,-500.0,0.00013835,2]
[351867397,1738825843767,-500.0,0.00013835,2]
[351867399,1738825843777,-500.0,0.00013835,2]
[351867402,1738825843787,-969.79,0.00013835,2]
[351867420,1738825843797,-739.06,0.00013835,2]
[351867422,1738825843971,-500.0,0.00013835,2]
[351867424,1738825843982,-606.33,0.00013835,2]
[351867426,1738825843991,-500.0,0.00013835,2]
[351867428,1738825844001,-500.0,0.00013835,2]
[351867430,1738825844011,-500.0,0.00013835,2]
[351867432,1738825844020,-11152.79,0.00013835,2]
[351867434,1738825844030,-4920.29,0.00013835,2]
[351867436,1738825844039,-500.0,0.00013835,2]
[351867438,1738825844050,-500.0,0.00013835,2]
[351867440,1738825844060,-812.74,0.00013835,2]
[351867442,1738825844069,-500.0,0.00013835,2]
[351867444,1738825844079,-3422.15,0.00013835,2]
[351867446,1738825844088,-500.0,0.00013835,2]
[351867448,1738825844098,-500.0,0.00013835,2]
[351867450,1738825844112,-500.0,0.00013835,2]
[351867452,1738825844121,-1896.21,0.00013835,2]
[351867454,1738825844131,-500.0,0.00013835,2]
[351867456,1738825844140,-20580.38,0.00013835,2]
[351867458,1738825844150,-4042.47,0.00013835,2]
[351867460,1738825844159,-2055.52,0.00013835,2]
[351867462,1738825844169,-529.96,0.00013835,2]
[351867464,1738825844179,-931.34,0.00013835,2]
[351867466,1738825844188,-690.97,0.00013835,2]
[351867468,1738825844198,-500.0,0.00013835,2]
[351867471,1738825844208,-1864.33,0.00013835,2]
[351867473,1738825844217,-500.0,0.00013835,2]
[351867474,1738825844226,-2520.04,0.00013835,2]
[351867476,1738825844236,-1724.05,0.00013835,2]
[351867478,1738825844245,-500.0,0.00013835,2]
[351867480,1738825844255,-500.0,0.00013835,2]
[351867482,1738825844265,-500.0,0.00013835,2]
[351867484,1738825844275,-458.45730818,0.00013835,2]
[351867487,1738825844285,-786.52,0.00013835,2]
[351867489,1738825844295,-500.0,0.00013835,2]
[351867490,1738825844304,-4900.42,0.00013835,2]
[351867492,1738825844315,-1274.05,0.00013835,2]
[351867495,1738825844325,-500.0,0.00013835,2]
[351867496,1738825844335,-547.89,0.00013835,2]
[351867498,1738825844344,-500.0,0.00013835,2]
[351867501,1738825844356,-500.0,0.00013835,2]
[351867502,1738825844366,-500.0,0.00013835,2]
[351867505,1738825844376,-500.0,0.00013835,2]
[351867507,1738825844386,-500.0,0.00013835,2]
[351867509,1738825844396,-1130.0,0.00013835,2]
[351867511,1738825844406,-3673.51,0.00013835,2]